[Event "II Duchamp Open 2018"]
[Site "Rio de Janeiro"]
[Date "2018.11.17"]
[Round "5"]
[White "Fucs, Paulo Moses"]
[Black "Bomfim, Carlos B Campos Roc"]
[Result "1-0"]
[ECO "C40"]
[WhiteElo "2016"]
[BlackElo "1920"]
[Annotator "NA RC"]
[PlyCount "105"]
[EventDate "2018.11.14"]
[EventType "swiss"]
[EventCountry "BRA"]
[SourceTitle "playchess.com"]
[Source "ChessBase"]
[SourceQuality "1"]
[TimeControl "5400+30"]

{[%evp 8,105,75,32767,32767,32767,32767,32767,32767,32767,32767,32767,32767,87,85,39,62,-11,-15,-12,-4,-5,0,0,32,38,31,51,32767,32767,45,35,68,0,36,26,56,44,32767,32767,32767,32767,32767,53,62,51,50,52,39,49,111,109,260,259,304,32767,32767,260,250,32767,260,260,275,299,304,293,363,32767,32767,32767,32767,265,382,450,577,344,683,420,799,831,963,742,835,970,2148,1314,2717,3282,5608,6095,29953,5222,11972,29975,29987,29958,29993,1133,29992,29993]} 1. e4 {[%emt 0:00:00]} e5 {[%emt 0:01:07]} 2. Nf3 {[%emt 0:00:00]} Qe7 {[%emt 0:00:29]} 3. Nc3 {[%emt 0:00:56]} c6 {[%emt 0:00:37]} 4. d4 {[%emt 0:01:15]} d6 {[%emt 0:00:03]} 5. dxe5 {[%emt 0:02:31] C41: Philidor Defence} (5. a4 Nf6 6. Be2 h6 7. h3 Qc7 8. Be3 Be7 9. O-O O-O 10. Re1 Re8 11. Bc4 Nbd7 12. Ba2 Nf8 13. Qd2 Be6 14. d5 Bd7 15. Rad1 c5 16. Nxe5 dxe5 17. d6 Bxd6 18. Qxd6 Qxd6 19. Rxd6 Be6 20. Bxc5 Bxa2 21. Nxa2 {0-1 (72) Sanal,V (2551)-Fedoseev,V (2718) Riadh 2017}) 5... dxe5 {[%emt 0:00:03]} 6. Bc4 {[%emt 0:02:04]} g6 {[%emt 0:00:13]} 7. Ng5 {[%emt 0:03:16]} Nh6 {[%emt 0:00:22]} 8. O-O {[%emt 0:01:58]} Bg7 {[%emt 0:00:23]} 9. a4 $146 {[%emt 0:01:23]} ({Predecessor:} 9. h3 O-O 10. Nf3 Kh8 11. Re1 Ng8 12. Bg5 f6 13. Bh4 Nd7 14. a4 a5 15. Qe2 Nc5 16. Rad1 Qc7 17. b3 Ne6 18. Bg3 {½-½ (18) Valencia de Loma,S (1689)-Camacho Casado,D (1899) Madrid 2016}) 9... O-O {[%emt 0:00:19]} 10. Qe2 {[%emt 0:03:44]} Nd7 {[%emt 0:02:46]} 11. Kh1 {[%emt 0:01:57]} (11. h3 $16) 11... Kh8 {[%emt 0:02:31]} 12. f4 {[%emt 0:01:59]} ({White should play} 12. Rd1 $14) 12... exf4 {[%emt 0:04:30]} 13. Bxf4 {[%emt 0:00:23]} Ne5 {[%emt 0:00:24]} 14. Bb3 {[%emt 0:02:39]} Bg4 {[%emt 0:05:44]} 15. Qe3 {[%emt 0:02:19]} Rae8 {[%emt 0:01:25]} 16. Rae1 {[%emt 0:04:03]} Bc8 {[%emt 0:02:12]} 17. Qxa7 {[%emt 0:02:36]} Nhg4 {[%emt 0:03:18]} 18. Qg1 {[%emt 0:02:50]} Bh6 {[%emt 0:32:03]} 19. Nh3 {[%emt 0:01:54]} Bxf4 {[%emt 0:06:20]} 20. Rxf4 {[%emt 0:00:17]} ({White should try} 20. Nxf4 $14 Qh4 21. h3) 20... g5 {[%emt 0:01:42]} 21. Rff1 {[%emt 0:01:31]} h5 {[%emt 0:01:06]} 22. Nd1 {[%emt 0:03:01]} Rg8 {[%emt 0:01:42]} 23. Nhf2 {[%emt 0:03:40]} Nh6 {[%emt 0:01:32]} 24. Nd3 {[%emt 0:02:02]} Rg7 {[%emt 0:04:49]} 25. Qc5 {[%emt 0:03:39]} (25. N1f2 $16) 25... Qxc5 {[%emt 0:04:31]} 26. Nxc5 {[%emt 0:00:13]} b6 {[%emt 0:00:56]} 27. Nd3 {[%emt 0:00:29]} Ba6 $1 {[%emt 0:01:08]} 28. N1f2 {[%emt 0:04:42]} c5 {[%emt 0:00:23]} (28... g4 $14) 29. Bd5 {[%emt 0:01:28]} Ng6 {[%emt 0:02:59]} (29... h4 $16 {keeps fighting.} 30. h3 f6) 30. c4 {[%emt 0:00:31]} Nf8 {[%emt 0:01:02]} 31. b3 {[%emt 0:01:09]} Ne6 {[%emt 0:00:19]} 32. Bxe6 {[%emt 0:03:35]} Rxe6 33. a5 Rgg6 {[%emt 0:03:27]} 34. Ra1 {[%emt 0:01:48]} bxa5 {[%emt 0:00:50]} 35. Rxa5 {[%emt 0:00:21]} Rb6 {[%emt 0:01:33]} 36. Nxc5 {[%emt 0:00:30]} Kg7 {[%emt 0:00:27]} 37. Nxa6 {[%emt 0:01:18]} Rxa6 {[%emt 0:00:01]} 38. Rxa6 {[%emt 0:00:11]} Rxa6 {[%emt 0:00:04]} 39. Rb1 {[%emt 0:00:29]} Kf6 {[%emt 0:01:13]} (39... Ng8 {was called for.} 40. b4 Nf6) 40. b4 {[%emt 0:00:22]} Ra4 {[%emt 0:00:25]} 41. Nd3 {[%emt 0:00:24]} Ke7 $2 {[%emt 0:01:01]} (41... Ra3 42. Nc5 Ng4) 42. Nc5 {[%emt 0:00:30]} Ra7 {[%emt 0:00:25]} (42... Ra2 $142 43. h3 Kd6 44. Rd1+ Ke7 45. Rd7+ Kf8) 43. b5 {[%emt 0:00:18]} Kd6 {[%emt 0:01:21]} 44. Nd3 {[%emt 0:01:05]} Rb7 {[%emt 0:01:19]} 45. c5+ {[%emt 0:00:40]} Kc7 {[%emt 0:00:25]} 46. Ne5 {[%emt 0:01:05]} f6 {[%emt 0:01:20]} 47. b6+ {[%emt 0:00:42] Decoy} Kb8 {[%emt 0:01:40]} 48. Nc6+ {[%emt 0:00:38]} Kc8 {[%emt 0:01:07]} 49. Na7+ {[%emt 0:00:14]} Kb8 {[%emt 0:00:28]} 50. c6 {[%emt 0:00:11]} Re7 {[%emt 0:00:46]} 51. Rd1 {[%emt 0:00:42]} Re8 {[%emt 0:00:26] [#]} 52. Rd8+ $18 {[%emt 0:00:12]} Rxd8 {[%emt 0:00:22]} 53. c7+ {[%emt 0:00:10] Double Attack} 1-0

[Event "II Duchamp Open 2018"]
[Site "Rio de Janeiro"]
[Date "2018.11.17"]
[Round "5"]
[White "Pimentel, Rafael Favarin G."]
[Black "Campos, Alexandre Ferreira"]
[Result "1/2-1/2"]
[ECO "A33"]
[WhiteElo "1886"]
[BlackElo "2076"]
[Annotator "NA RC"]
[PlyCount "129"]
[EventDate "2018.11.14"]
[EventType "swiss"]
[EventCountry "BRA"]
[SourceTitle "playchess.com"]
[Source "ChessBase"]
[SourceQuality "1"]
[TimeControl "5400+30"]

{[%evp 12,129,12,32767,32767,32767,32767,83,73,54,54,45,56,-3,0,-7,-3,-47,-49,-60,-12,-10,-9,-19,0,32767,-40,-77,-90,-85,-84,-74,-83,-78,32767,-104,-82,32767,32767,-76,-74,-86,-72,-99,-114,-107,-127,-132,32767,32767,32767,32767,-145,-142,-135,-137,-141,-140,-113,-134,-83,-101,32767,-5,-18,-139,-139,-153,-133,-156,-110,-99,0,0,0,0,0,0,0,0,0,0,0,0,0,0,0,0,0,0,0,0,0,0,0,0,0,0,0,0,0,0,0,0,0,0,0,0,0,0,329,0,0,0,0,0,0,0,0,0]} 1. d4 {[%emt 0:00:00]} Nf6 {[%emt 0:00:00]} 2. c4 {[%emt 0:00:00]} e6 {[%emt 0:00:07]} 3. Nc3 {[%emt 0:00:00]} c5 {[%emt 0:00:21]} 4. Nf3 {[%emt 0:01:29]} cxd4 {[%emt 0:00:52]} 5. Nxd4 {[%emt 0:00:11]} Nc6 {[%emt 0:00:06]} 6. Bg5 {[%emt 0:01:15]} Bc5 {[%emt 0:02:09] LiveBook: 3 Games A33: Symmetrical English: 2 Nf3 Nf6 3 d4 cxd4 4 Nxd4 e6 5 Nc3 Nc6} (6... Be7 7. e3 O-O 8. Be2 h6 9. Bh4 d5 10. cxd5 exd5 11. O-O Be6 12. Rc1 Qd7 13. Nxe6 fxe6 14. Bd3 Rad8 15. Bb1 Qe8 {1-0 (40) Wojtaszek,R (2749)-Radjabov,T (2710) Doha 2016}) 7. e3 {[%emt 0:01:07]} Qb6 {[%emt 0:04:10]} 8. Nb3 {[%emt 0:01:04]} Bb4 {[%emt 0:03:12]} 9. Bxf6 {[%emt 0:14:49]} gxf6 {[%emt 0:00:11]} 10. Qc2 $146 {[%emt 0:02:12]} ({Predecessor:} 10. Rc1 Na5 11. c5 Bxc5 12. Nxc5 Qxc5 13. Qd2 Nc4 14. Bxc4 Qxc4 {1-0 (66) Roiz,M (2605)-Fernandez,F (2410) Baku 2016}) 10... Bxc3+ {[%emt 0:01:12]} 11. Qxc3 {[%emt 0:01:03]} Qb4 {[%emt 0:00:03]} 12. Be2 {[%emt 0:05:12]} Qxc3+ {[%emt 0:00:40]} 13. bxc3 {[%emt 0:00:01]} b6 {[%emt 0:00:46]} 14. Rd1 {[%emt 0:03:03]} Ke7 {[%emt 0:00:30]} 15. f3 {[%emt 0:01:31]} d6 {[%emt 0:00:21]} 16. Nd4 {[%emt 0:02:23]} Bb7 {[%emt 0:06:07]} 17. Kf2 {[%emt 0:01:15]} Rac8 {[%emt 0:01:06]} 18. g4 {[%emt 0:02:47]} Rhd8 {[%emt 0:00:24]} 19. Nxc6+ {[%emt 0:09:28]} Rxc6 {[%emt 0:00:59]} 20. Rb1 {[%emt 0:00:08]} Rc5 {[%emt 0:02:03]} 21. Rb5 {[%emt 0:03:01]} Rdc8 22. Rhb1 {[%emt 0:00:23]} Ba6 {[%emt 0:04:59]} 23. Rxc5 {[%emt 0:02:14]} Rxc5 {[%emt 0:00:04]} 24. Rb4 {[%emt 0:00:12]} Ra5 {[%emt 0:00:15]} 25. a4 {[%emt 0:00:28]} Bb7 {[%emt 0:03:51]} 26. Bd1 {[%emt 0:01:35]} Rc5 {[%emt 0:01:35]} 27. Be2 {[%emt 0:06:31]} Bc6 {[%emt 0:00:37]} 28. Ke1 {[%emt 0:00:28]} Kd7 {[%emt 0:00:15]} 29. f4 {[%emt 0:09:05]} Kc7 {[%emt 0:03:54]} 30. h4 {[%emt 0:05:25]} a5 {[%emt 0:00:56]} 31. Kd2 {[%emt 0:06:01]} f5 {[%emt 0:04:54]} ({Don't play} 31... axb4 $6 32. cxb4 f5 33. bxc5 $11) 32. g5 {[%emt 0:00:42]} Bd7 {[%emt 0:06:09]} ({Don't do} 32... axb4 33. cxb4 Bxa4 34. bxc5 $15) 33. Rb1 {[%emt 0:02:03]} Bxa4 {[%emt 0:00:17]} 34. h5 {[%emt 0:00:21]} Bc6 {[%emt 0:02:10]} 35. h6 {[%emt 0:00:48]} a4 {[%emt 0:00:19]} (35... Kb7 $142 36. Ra1 Be4) 36. Rg1 {[%emt 0:02:44]} a3 {[%emt 0:04:41]} 37. Ra1 {[%emt 0:03:04]} Ra5 {[%emt 0:00:22]} 38. Bh5 {[%emt 0:01:21] [#]} (38. Kc2 $1 $11) 38... Be8 $1 {[%emt 0:00:23]} 39. Kc2 {[%emt 0:00:10] [#]} Kc6 $1 {[%emt 0:03:25]} 40. Kb3 {[%emt 0:04:35]} Kc5 {[%emt 0:00:22]} 41. Be2 {[%emt 0:00:11]} b5 $2 {[%emt 0:09:30]} (41... Ba4+ $19 42. Ka2 d5 43. cxd5 Kxd5) 42. Rxa3 {[%emt 0:01:44]} bxc4+ {[%emt 0:00:19]} 43. Ka2 {[%emt 0:00:17]} Rxa3+ {[%emt 0:04:09]} 44. Kxa3 {[%emt 0:00:11]} e5 {[%emt 0:00:17]} 45. Kb2 {[%emt 0:03:33]} exf4 {[%emt 0:00:27]} 46. exf4 {[%emt 0:00:02]} d5 {[%emt 0:00:23]} 47. Kc2 {[%emt 0:01:44]} d4 {[%emt 0:01:11]} 48. Bf3 {[%emt 0:02:08]} d3+ {[%emt 0:00:51]} 49. Kd2 {[%emt 0:00:11]} f6 {[%emt 0:07:47]} 50. gxf6 {[%emt 0:00:21]} Kd6 {[%emt 0:00:36]} 51. Bb7 {[%emt 0:00:08]} Bf7 $1 {[%emt 0:00:56]} 52. Bc8 {[%emt 0:00:13]} Be6 $1 {[%emt 0:02:33]} 53. f7 {[%emt 0:00:25]} Bxf7 {[%emt 0:00:54]} 54. Bxf5 {[%emt 0:00:17]} Bg8 {[%emt 0:00:19]} 55. Ke3 {[%emt 0:00:25]} Ke7 {[%emt 0:00:41]} 56. Be4 {[%emt 0:02:13]} Kf6 {[%emt 0:00:18]} 57. Kd2 {[%emt 0:00:09]} Ke6 {[%emt 0:01:12]} 58. Ke3 {[%emt 0:00:10]} Kd6 {[%emt 0:00:02]} 59. Kd2 {[%emt 0:00:09]} Kc5 {[%emt 0:00:36]} 60. Ke3 {[%emt 0:00:17]} Kb5 {[%emt 0:00:29] [#]} 61. Kd2 $2 {[%emt 0:00:24]} (61. f5 $1 $18) 61... Kc5 {[%emt 0:00:46]} 62. Ke3 {[%emt 0:00:13]} Kd6 {[%emt 0:00:01]} 63. Kd2 {[%emt 0:00:09]} Ke6 {[%emt 0:03:43]} 64. Ke3 {[%emt 0:00:06]} Kf6 $11 {[%emt 0:00:12]} 65. Kd2 {[%emt 0:00:18] Ke5} 1/2-1/2

[Event "II Duchamp Open 2018"]
[Site "Rio de Janeiro"]
[Date "2018.11.18"]
[Round "6"]
[White "Matsuura, Everaldo"]
[Black "Rodriguez Vila, Andres"]
[Result "1-0"]
[ECO "B07"]
[WhiteElo "2476"]
[BlackElo "2482"]
[Annotator "RC"]
[PlyCount "77"]
[EventDate "2018.11.14"]
[EventType "swiss"]
[EventCountry "BRA"]
[SourceTitle "playchess.com"]
[Source "ChessBase"]
[SourceQuality "1"]
[TimeControl "5400+30"]

1. e4 {[%emt 0:17:08]} d6 {[%emt 0:00:00]} 2. d4 {[%emt 0:00:14]} Nf6 {[%emt 0:00:00]} 3. Nc3 {[%emt 0:00:09]} c6 {[%emt 0:00:00]} 4. f4 {[%emt 0:00:54]} Bg4 {[%emt 0:00:29]} 5. Qd3 {[%emt 0:03:54]} Na6 {[%emt 0:00:34]} 6. h3 {[%emt 0:01:17]} Nb4 {[%emt 0:02:56]} 7. Qd2 {[%emt 0:01:18]} Bd7 {[%emt 0:00:25]} 8. a3 {[%emt 0:03:12]} Qa5 {[%emt 0:00:43]} 9. Rb1 {[%emt 0:11:00]} Na6 {[%emt 0:00:05]} 10. b4 {[%emt 0:04:02]} Qh5 {[%emt 0:01:05]} 11. Qf2 {[%emt 0:09:59]} e5 {[%emt 0:17:26]} 12. dxe5 {[%emt 0:08:59]} dxe5 {[%emt 0:00:25]} 13. f5 {[%emt 0:03:12]} g5 {[%emt 0:00:30]} 14. Nf3 {[%emt 0:07:20]} Rg8 {[%emt 0:03:56]} 15. Be2 {[%emt 0:02:58]} Qh6 {[%emt 0:11:26]} 16. h4 {[%emt 0:05:40]} Be7 {[%emt 0:00:50]} 17. Qg1 {[%emt 0:01:44]} Nxe4 {[%emt 0:04:27]} 18. Nxe4 {[%emt 0:01:12]} Bxf5 {[%emt 0:00:03]} 19. hxg5 {[%emt 0:07:33]} Qe6 {[%emt 0:00:06]} 20. Qe3 {[%emt 0:01:26]} Nc7 {[%emt 0:01:24]} 21. c4 {[%emt 0:00:14]} O-O-O {[%emt 0:00:32]} 22. Rb2 {[%emt 0:00:24]} Kb8 {[%emt 0:11:38]} 23. Rd2 {[%emt 0:00:05]} Rde8 {[%emt 0:06:57]} 24. Rd1 {[%emt 0:03:57]} Bg6 {[%emt 0:05:44]} 25. Kf1 {[%emt 0:02:20]} Qf5 {[%emt 0:04:34]} 26. Ng3 {[%emt 0:01:17]} Qc8 {[%emt 0:00:18]} 27. Bb2 {[%emt 0:00:39]} Bc2 {[%emt 0:04:30]} 28. Rd2 {[%emt 0:00:57]} e4 {[%emt 0:04:21]} 29. Rxc2 {[%emt 0:00:06]} exf3 {[%emt 0:00:02]} 30. Qxf3 {[%emt 0:00:07]} Rxg5 {[%emt 0:00:10]} 31. Bd3 {[%emt 0:00:22]} Rd8 {[%emt 0:03:59]} 32. Rh5 {[%emt 0:00:25]} Rg6 {[%emt 0:07:43]} 33. Bxg6 {[%emt 0:01:05]} fxg6 {[%emt 0:00:43]} 34. Rxh7 {[%emt 0:00:22]} Qe6 {[%emt 0:04:59]} 35. Re2 {[%emt 0:00:34]} Qxc4 {[%emt 0:03:02]} 36. Rhxe7 {[%emt 0:00:15]} Nd5 {[%emt 0:00:31]} 37. R7e4 {[%emt 0:00:48]} Qb5 {[%emt 0:00:01]} 38. Kg1 {[%emt 0:00:24]} g5 {[%emt 0:00:30]} 39. Re8 {[%emt 0:00:25]} 1-0

[Event "II Duchamp Open 2018"]
[Site "Rio de Janeiro"]
[Date "2018.11.18"]
[Round "6"]
[White "Teixeira, Ricardo Da Silva"]
[Black "Pimentel, Rafael Favarin G."]
[Result "1-0"]
[ECO "B56"]
[WhiteElo "2239"]
[BlackElo "1886"]
[Annotator "NA RC"]
[PlyCount "81"]
[EventDate "2018.11.14"]
[EventType "swiss"]
[EventCountry "BRA"]
[SourceTitle "playchess.com"]
[Source "ChessBase"]
[SourceQuality "1"]
[TimeControl "5400+30"]

1. e4 {[%emt 0:35:24]} c5 {[%emt 0:00:45]} 2. Nf3 {[%emt 0:00:09]} Nc6 {[%emt 0:00:06]} 3. d4 {[%emt 0:00:19]} cxd4 {[%emt 0:00:07]} 4. Nxd4 {[%emt 0:00:11]} Nf6 {[%emt 0:00:09]} 5. Nc3 {[%emt 0:00:09]} d6 {[%emt 0:00:09]} 6. g3 {[%emt 0:03:30]} a6 {[%emt 0:08:57]} 7. Bg2 {[%emt 0:00:12]} Bd7 {[%emt 0:01:13]} 8. O-O {[%emt 0:00:49]} e6 {[%emt 0:00:06]} 9. Nxc6 {[%emt 0:01:38]} Bxc6 {[%emt 0:00:47]} 10. Re1 {[%emt 0:00:50]} Be7 {[%emt 0:00:21]} 11. a4 {[%emt 0:00:19]} O-O {[%emt 0:01:52]} 12. a5 {[%emt 0:00:40]} Qc7 {[%emt 0:06:28]} 13. Be3 {[%emt 0:01:55]} Nd7 {[%emt 0:00:23]} 14. Na4 {[%emt 0:02:08]} Bxa4 {[%emt 0:04:17]} 15. Rxa4 {[%emt 0:00:19]} b5 {[%emt 0:00:08] B80: Sicilian Scheveningen: 6 g3 and 6 Be3, including English Attack} 16. axb6 {[%emt 0:01:56]} Nxb6 {[%emt 0:00:34]} 17. Ra2 {[%emt 0:00:08] [#]} Rfd8 $146 {[%emt 0:03:51]} ({Predecessor:} 17... a5 18. Bd4 a4 19. Re3 Rfc8 20. Rc3 Qd8 21. Qd3 Nd7 22. Rc4 Ne5 23. Bxe5 Rxc4 24. Qxc4 dxe5 25. Rxa4 Rxa4 26. Qxa4 {½-½ (59) Kavalek,L (2600)-Tal,M (2705) Bugojno 1980}) 18. b3 {[%emt 0:04:35]} Bf6 {[%emt 0:04:11]} 19. Bd4 {[%emt 0:08:50]} Bxd4 {[%emt 0:06:14]} 20. Qxd4 {[%emt 0:00:02]} d5 {[%emt 0:07:25]} 21. Qa1 {[%emt 0:17:34]} dxe4 {[%emt 0:20:26]} 22. Bxe4 {[%emt 0:01:06]} Nd5 {[%emt 0:00:44]} 23. Rxa6 {[%emt 0:00:56]} Rxa6 {[%emt 0:02:49]} 24. Qxa6 {[%emt 0:00:17]} Nb4 {[%emt 0:01:05]} 25. Qe2 {[%emt 0:02:34]} f5 {[%emt 0:05:22]} ({Black should play} 25... Qc3) 26. Bd3 {[%emt 0:02:30]} Nxd3 {[%emt 0:02:18]} 27. Qxe6+ {[%emt 0:00:17]} ({Don't play} 27. cxd3 $6 Rd6 $14) 27... Qf7 {[%emt 0:00:03] [#]} 28. Qxf7+ {[%emt 0:00:24]} ({Don't do} 28. cxd3 $6 Qxe6 29. Rxe6 Rxd3 $16) ({White should play} 28. Qb6 $1 $18 {[%cal Rb6d8]} Nxe1 29. Qxd8+ Qf8 30. Qd1) 28... Kxf7 {[%emt 0:00:01]} 29. Rd1 {[%emt 0:00:14] Pin} Rc8 {[%emt 0:00:05]} 30. cxd3 {[%emt 0:00:19]} Rc3 {[%emt 0:00:08] [#]} 31. Rb1 $1 {[%emt 0:00:47]} Rxd3 {[%emt 0:05:01]} 32. b4 {[%emt 0:00:29]} Rd7 {[%emt 0:00:47]} 33. h4 {[%emt 0:00:44]} Kf6 {[%emt 0:01:01]} 34. Kf1 {[%emt 0:01:50]} h6 {[%emt 0:01:12]} 35. Ke2 {[%emt 0:02:25]} Ke5 {[%emt 0:02:11]} 36. f4+ {[%emt 0:01:56]} Ke6 {[%emt 0:01:24]} 37. Ke3 {[%emt 0:00:24]} Rd5 {[%emt 0:03:21]} (37... Re7 $16 {was worth a try.} 38. Kd3 Kd6) 38. Rb3 {[%emt 0:00:57]} Rd1 {[%emt 0:04:38]} 39. b5 {[%emt 0:00:50]} Rg1 {[%emt 0:03:50]} 40. Kd4 {[%emt 0:01:50]} Kd6 {[%emt 0:00:18]} 41. b6 $18 {[%emt 0:01:46] Kd5+ Ke4+} 1-0

[Event "II Duchamp Open 2018"]
[Site "Rio de Janeiro"]
[Date "2018.11.18"]
[Round "6"]
[White "Dos Santos, Vitor Eduardo Mello"]
[Black "Rocha, Vitor Firmo De Souz"]
[Result "1-0"]
[ECO "B12"]
[WhiteElo "2054"]
[BlackElo "2174"]
[Annotator "ChessBase"]
[PlyCount "103"]
[EventDate "2018.11.14"]
[EventType "swiss"]
[EventCountry "BRA"]
[SourceTitle "playchess.com"]
[Source "ChessBase"]
[SourceQuality "1"]
[TimeControl "5400+30"]

1. e4 {[%emt 0:00:35]} c6 {[%emt 0:00:00]} 2. d4 {[%emt 0:00:07]} d5 {[%emt 0:00:00]} 3. e5 {[%emt 0:00:08]} Bf5 {[%emt 0:00:00]} 4. Nf3 {[%emt 0:00:07]} e6 {[%emt 0:00:00]} 5. Be2 {[%emt 0:00:55]} Nd7 {[%emt 0:00:04]} 6. O-O {[%emt 0:00:11]} Ne7 {[%emt 0:00:09]} 7. b3 {[%emt 0:00:48]} h6 {[%emt 0:01:10]} 8. c4 {[%emt 0:00:06]} Bh7 {[%emt 0:00:15]} 9. Nc3 {[%emt 0:02:31]} Ng6 {[%emt 0:01:24]} 10. a3 {[%emt 0:02:32]} Be7 {[%emt 0:00:18]} 11. Re1 {[%emt 0:01:19]} O-O {[%emt 0:00:24]} 12. Bd3 {[%emt 0:00:48]} Rc8 {[%emt 0:02:14]} 13. c5 {[%emt 0:15:14]} Re8 {[%emt 0:03:18]} 14. Qc2 {[%emt 0:25:01]} b5 {[%emt 0:01:58]} 15. b4 {[%emt 0:00:50]} a5 {[%emt 0:00:33]} 16. Kh1 {[%emt 0:05:02]} a4 {[%emt 0:02:57]} 17. Ng1 {[%emt 0:03:04]} Ngf8 {[%emt 0:04:06]} 18. f4 {[%emt 0:01:44]} f5 {[%emt 0:05:50]} 19. Nf3 {[%emt 0:15:14]} g5 {[%emt 0:02:14]} 20. fxg5 {[%emt 0:00:50]} hxg5 {[%emt 0:00:06]} 21. g4 {[%emt 0:04:15]} fxg4 {[%emt 0:02:40]} 22. Nd2 {[%emt 0:00:33]} Bxd3 {[%emt 0:02:07]} 23. Qxd3 {[%emt 0:00:01]} Kg7 {[%emt 0:00:18]} 24. Rg1 {[%emt 0:00:49]} Ng6 {[%emt 0:00:16]} 25. Rxg4 {[%emt 0:00:57]} Rf8 {[%emt 0:03:37]} 26. Qg3 {[%emt 0:03:22]} Rf5 {[%emt 0:01:28]} 27. Nf3 {[%emt 0:00:23]} Qf8 {[%emt 0:10:42]} 28. Bxg5 {[%emt 0:07:12]} Rxf3 {[%emt 0:18:51]} 29. Bxe7 {[%emt 0:00:11]} Qf5 {[%emt 0:02:10]} 30. Rxg6+ {[%emt 0:01:29]} Kh7 {[%emt 0:01:12]} 31. Rg5 {[%emt 0:05:32]} Rxg3 {[%emt 0:03:32]} 32. Rxf5 {[%emt 0:00:01]} Rxc3 {[%emt 0:00:31]} 33. Rf4 {[%emt 0:00:02]} Rh3 {[%emt 0:01:33]} 34. Kg2 {[%emt 0:03:20]} Rh5 {[%emt 0:01:07]} 35. h4 {[%emt 0:00:37]} Rf5 {[%emt 0:03:44]} 36. Raf1 {[%emt 0:00:05]} Rg8+ {[%emt 0:01:49]} 37. Kh3 {[%emt 0:00:02]} Rxf4 {[%emt 0:00:40]} 38. Rxf4 {[%emt 0:00:03]} Rg1 {[%emt 0:02:00]} 39. Bd6 {[%emt 0:01:02]} Rg7 {[%emt 0:01:54]} 40. h5 {[%emt 0:01:57]} Kh6 {[%emt 0:00:13]} 41. Rg4 {[%emt 0:00:58]} Rf7 {[%emt 0:07:12]} 42. Kh4 {[%emt 0:00:03]} Kh7 {[%emt 0:07:28]} 43. Rg6 {[%emt 0:00:04]} Rf1 {[%emt 0:05:44]} 44. Rxe6 {[%emt 0:00:33]} Rh1+ {[%emt 0:00:03]} 45. Kg5 {[%emt 0:00:33]} Rg1+ {[%emt 0:00:03]} 46. Kf4 {[%emt 0:00:28]} Rf1+ {[%emt 0:00:13]} 47. Ke3 {[%emt 0:00:41]} Ra1 {[%emt 0:00:30]} 48. Re7+ {[%emt 0:00:11]} Kh6 {[%emt 0:00:03]} 49. Rxd7 {[%emt 0:00:17]} Rxa3+ {[%emt 0:00:05]} 50. Kf4 {[%emt 0:00:45]} Rd3 {[%emt 0:00:10]} 51. e6 {[%emt 0:00:42]} a3 {[%emt 0:01:32]} 52. Be5 {[%emt 0:00:51]} 1-0

[Event "II Duchamp Open 2018"]
[Site "Rio de Janeiro"]
[Date "2018.11.18"]
[Round "6"]
[White "Brito, Vicente De Paulo Al"]
[Black "Chaves, Jorge Antonio Torre"]
[Result "1/2-1/2"]
[ECO "B21"]
[WhiteElo "2044"]
[BlackElo "1922"]
[Annotator "NA RC"]
[PlyCount "61"]
[EventDate "2018.11.14"]
[EventType "swiss"]
[EventCountry "BRA"]
[SourceTitle "playchess.com"]
[Source "ChessBase"]
[SourceQuality "1"]
[TimeControl "5400+30"]

1. e4 c5 {[%emt 0:00:00]} 2. d4 {[%emt 0:00:31]} cxd4 {[%emt 0:00:00]} 3. c3 {[%emt 0:00:00]} dxc3 {[%emt 0:00:10]} 4. Nxc3 {[%emt 0:00:00]} d6 {[%emt 0:00:54]} 5. Nf3 {[%emt 0:00:00]} Nc6 {[%emt 0:00:32]} 6. Bc4 {[%emt 0:00:00]} e6 {[%emt 0:00:55]} 7. O-O {[%emt 0:00:00]} a6 {[%emt 0:01:17]} 8. Qe2 {[%emt 0:00:15]} Be7 {[%emt 0:00:46]} 9. Rd1 {[%emt 0:00:54]} Qc7 {[%emt 0:01:21]} 10. Bf4 {[%emt 0:02:32]} Ne5 {[%emt 0:02:55]} 11. Bb3 {[%emt 0:06:16] B21: Sicilian: 2 f4 and Morra Gambit} Nf6 {[%emt 0:01:05]} 12. Rac1 {[%emt 0:00:33]} Qb8 {[%emt 0:02:34]} 13. a4 {[%emt 0:22:07]} (13. Nd4 Bd7 14. Bg3 O-O 15. f4 Nc6 16. Kh1 Nxd4 17. Rxd4 Bc6 18. e5 dxe5 19. fxe5 {0-1 (57) Rowe,D (2147)-Nurmamedov,A (2349) Batumi 2018}) 13... b6 {[%emt 0:05:36]} 14. Nd4 {[%emt 0:17:13]} Bd7 {[%emt 0:00:14]} 15. h3 $146 {[%emt 0:03:16]} ({Predecessor:} 15. Bg3 O-O 16. f4 Nc6 17. Nf3 Nh5 18. e5 Nxg3 19. hxg3 {1-0 (31) Silva Nazzari,R-Rovira Mas,J Lugano 1968}) 15... O-O {[%emt 0:02:44]} 16. Be3 {[%emt 0:05:31]} Rd8 {[%emt 0:09:08]} 17. g4 {[%emt 0:07:56]} Qb7 {[%emt 0:05:13]} 18. f4 {[%emt 0:04:47]} Nc6 {[%emt 0:00:16]} 19. g5 {[%emt 0:00:46]} Nxd4 {[%emt 0:01:44]} 20. Bxd4 {[%emt 0:00:16]} Ne8 {[%emt 0:02:59]} 21. h4 {[%emt 0:05:31]} Bc6 {[%emt 0:03:09]} 22. h5 {[%emt 0:01:50]} Bf8 {[%emt 0:10:07] [#]} (22... b5 $11 {remains equal.}) 23. g6 $1 {[%emt 0:01:19]} h6 {[%emt 0:02:56]} 24. f5 fxg6 {[%emt 0:07:23]} 25. Bxe6+ {[%emt 0:02:45]} Kh8 {[%emt 0:00:14]} 26. Nd5 {[%emt 0:01:43]} ({Don't play} 26. fxg6 Nf6 $18) 26... g5 {[%emt 0:02:01]} 27. Rf1 {[%emt 0:04:22]} ({Don't take} 27. Nxb6 $6 Rab8 $16) 27... Bxd5 {[%emt 0:04:25]} 28. Bxd5 {[%emt 0:00:02]} ({Stronger than} 28. exd5 Be7 $11) 28... Qe7 {[%emt 0:01:15]} 29. Bxa8 {[%emt 0:03:45]} Rxa8 {[%emt 0:00:06]} 30. Bxb6 {[%emt 0:01:06]} Qe5 {[%emt 0:00:54]} 31. Qd3 $16 {[%emt 0:04:07]} 1/2-1/2